bitfinex/quotes_ETHUSD_20220311
["timestamp","ask_amount","ask_price","bid_price","bid_amount"]
[1646983637532,1.07300627,2612.8,2612.7,0.00276454]
[1646983637784,1.07300627,2612.8,2611.8,4.5]
[1646983637785,1.05889542,2612.4,2611.8,4.5]
[1646983637980,1.05889542,2612.4,2611.7,0.108]
[1646983637981,0.462,2612.3,2611.7,0.108]
[1646983638184,1.05889542,2612.4,2611.7,0.108]
[1646983638185,0.30096,2612.8,2612.7,0.13216094]
[1646983638378,1.34350309,2612.8,2612.7,0.13216094]
[1646983638578,5.8,2612.8,2611.8,0.0012]
[1646983638780,1.31733402,2612.6,2611.8,0.0012]
[1646983638980,0.462,2612.5,2611.8,0.0012]
[1646983639280,3.5,2612.4,2611.8,0.0012]
[1646983639481,8.07448402,2612.8,2611.8,0.0012]
[1646983639482,0.462,2612.3,2611.8,0.0012]
[1646983639679,0.462,2612.2,2611.8,0.0012]
[1646983639879,1.31733402,2612.6,2611.8,0.0012]
[1646983639880,0.462,2612.1,2611.8,0.0012]
[1646983640080,0.99253677,2612.6,2612.2,0.08034572]
[1646983640081,2.30987079,2612.6,2612.2,0.08034572]
[1646983640282,0.462,2612.5,2612.2,0.08034572]
[1646983640683,9.0,2612.4,2611.8,0.0012]
[1646983640881,0.462,2612.3,2611.8,0.0012]
[1646983641929,0.98822242,2612.2,2611.8,0.0012]
[1646983642128,0.462,2612.1,2611.8,0.0012]
[1646983642733,0.462,2612.1,2612.0,0.07137804]
[1646983644639,16.11633402,2613.6,2612.0,0.07137804]
[1646983644640,0.3825,2613.4,2612.0,0.07137804]
[1646983644937,6.1465,2613.6,2612.3,0.25]
[1646983644938,0.00096,2613.0,2612.3,0.25]
[1646983645176,0.462,2613.2,2612.4,1.04094667]
[1646983645374,0.462,2613.2,2612.6,1.68266598]
[1646983645775,0.00096,2613.7,2612.0,1.07137804]
[1646983645776,0.462,2613.7,2612.9,0.25]
[1646983645982,0.07917354,2613.6,2613.0,1.68266598]
[1646983646177,0.07917354,2613.6,2612.9,0.25]
[1646983646178,0.0707703,2613.9,2613.1,4.5]
[1646983646376,0.0707703,2613.9,2613.3,1.68266598]
[1646983646581,0.0707703,2613.9,2613.3,0.25]
[1646983646781,0.0707703,2613.9,2613.5,1.68266598]
[1646983646981,0.0707703,2613.9,2613.3,0.25]
[1646983647481,0.06987697,2614.1,2613.5,1.68266598]
[1646983647680,0.06987697,2614.1,2613.5,1.6869259]
[1646983648489,0.06987697,2614.1,2613.5,1.68266598]
[1646983648949,0.06987697,2614.1,2613.7,0.00425972]
[1646983649334,0.06987697,2614.1,2614.0,1.0]
[1646983649534,0.53187697,2614.1,2614.0,1.0]
[1646983650336,0.53187697,2614.1,2613.9,0.00425948]
[1646983650541,0.07193484,2614.0,2613.9,0.00425948]
[1646983650740,0.462,2614.0,2613.9,0.00425948]
[1646983650942,0.462,2614.0,2613.5,0.00237621]
[1646983650943,1.52166011,2614.0,2613.5,0.00237621]
[1646983651145,0.06582994,2613.9,2613.5,0.00237621]
[1646983651342,0.06582994,2613.9,2613.8,0.004404]
[1646983651540,0.52782994,2613.9,2613.8,0.004404]
[1646983651741,1.84516396,2613.9,2613.8,0.004404]
[1646983651942,0.52782994,2613.9,2613.8,0.004404]
[1646983652142,0.52782994,2613.9,2613.5,0.00237621]
[1646983652341,0.07374683,2613.8,2613.5,0.00237621]
[1646983652540,0.07374683,2613.8,2613.7,0.0044041]
[1646983653277,0.07374683,2613.8,2613.5,0.00237621]
[1646983653476,0.07012737,2613.7,2613.5,0.00237621]
[1646983653680,0.0652236,2613.9,2613.6,0.00440421]
[1646983653876,0.462,2613.7,2613.6,0.00440421]
[1646983654376,0.0272236,2613.9,2613.6,0.00440421]
[1646983654577,0.462,2613.8,2613.5,0.00237621]
[1646983654777,0.07588978,2613.7,2613.5,0.00440863]
[1646983655780,0.07588978,2613.7,2613.3,0.25]
[1646983655978,0.07588978,2613.7,2613.5,0.00440868]
[1646983656183,0.00096,2614.2,2613.5,0.00440868]
[1646983656184,0.462,2614.2,2613.5,0.00440868]
[1646983656432,0.07020482,2614.1,2613.7,0.09055104]
[1646983657226,0.05926462,2614.2,2613.8,0.00440837]
[1646983657426,0.462,2614.5,2613.9,0.25]
[1646983657427,0.05427515,2614.4,2613.9,0.25]
[1646983657828,2.1247426,2614.7,2613.9,4.75]
[1646983657829,0.04160896,2614.7,2613.9,4.75]
[1646983658028,0.51450004,2615.1,2614.1,1.8315174]
[1646983658228,0.51450004,2615.1,2614.2,0.06947779]
[1646983658430,0.81048323,2614.8,2614.4,1.25]
[1646983658629,0.05098604,2614.7,2614.4,1.25]
[1646983659030,0.05098604,2614.7,2614.4,0.28125042]
[1646983659230,0.462,2614.6,2614.0,0.00440828]
[1646983659433,0.462,2614.6,2613.7,0.09055104]
[1646983659434,1.03038059,2614.4,2613.7,0.09055104]
[1646983659635,0.91425254,2614.0,2613.7,0.09055104]
[1646983659835,0.462,2613.9,2613.7,0.09055104]
[1646983660272,0.05031456,2614.4,2613.7,0.09055104]
[1646983660476,0.462,2614.3,2613.7,0.09055104]
[1646983660877,0.462,2614.3,2613.9,0.00440821]
[1646983661079,0.94143858,2614.0,2613.9,0.00440821]
[1646983661485,1.40343858,2614.0,2613.9,0.00440821]
[1646983661678,0.462,2614.0,2613.9,0.00440821]
[1646983661880,0.462,2614.0,2613.7,0.09055104]
[1646983662079,0.462,2614.0,2613.8,0.00426283]
[1646983662279,0.04892656,2613.9,2613.8,0.00426283]
[1646983662479,0.51092656,2613.9,2613.8,0.00426283]
[1646983662678,1.37301473,2613.9,2613.8,0.00426283]
[1646983663078,1.37301473,2613.9,2613.7,0.09055104]
[1646983663286,0.04170682,2613.8,2613.7,0.09481397]
[1646983663479,0.50370682,2613.8,2613.7,0.09481397]
[1646983663931,0.49705822,2613.8,2613.7,0.09481397]
[1646983664330,0.49705822,2613.8,2613.7,0.09055104]
[1646983665539,1.45365822,2613.8,2613.7,0.09055104]
[1646983665941,1.04682496,2614.1,2613.7,0.09055104]
[1646983666141,0.50651496,2614.0,2613.7,0.09055104]
[1646983666543,3.0,2613.8,2612.9,1.99259574]
[1646983666744,1.09249935,2613.5,2613.0,1.0993979]
[1646983666943,0.0460318,2613.9,2613.7,0.00376492]
[1646983667142,0.5080318,2613.9,2613.7,0.00376492]
[1646983667345,0.0536096,2613.8,2613.7,0.00376492]
[1646983667543,0.5156096,2613.8,2613.7,0.00376492]
[1646983667975,0.04883158,2613.7,2613.4,1.0]
[1646983668178,0.462,2613.6,2613.4,1.0]
[1646983668578,0.462,2613.6,2613.5,1.01714909]
[1646983669179,1.95664,2614.1,2613.5,1.01714909]
[1646983669180,0.21809,2614.6,2613.7,5.5]
[1646983669389,0.01261457,2615.1,2613.7,5.5]
[1646983669390,5.8968,2615.3,2614.5,1.8315174]
[1646983669682,6.7581,2615.9,2614.9,0.07883172]
[1646983669880,0.462,2615.8,2614.9,0.07883172]
[1646983670285,1.28261144,2615.8,2614.9,0.07883172]
[1646983670481,1.28261144,2615.8,2614.9,4.53454202]
[1646983670482,0.462,2615.8,2614.9,4.53454202]
[1646983670681,0.00410292,2615.5,2615.1,0.07666656]
[1646983671283,0.00410292,2615.5,2615.2,1.13819997]
[1646983671533,6.83689841,2616.3,2615.4,1.91552098]
[1646983671730,1.6304826,2616.9,2615.6,1.8315174]
[1646983671936,0.01640942,2615.8,2615.7,0.0804431]
[1646983672129,0.01640942,2615.8,2615.6,1.51430617]
[1646983672327,0.01640942,2615.8,2615.7,0.07426595]
[1646983672734,0.05208132,2616.7,2615.7,0.07426595]
[1646983672936,0.05208132,2616.7,2615.8,0.08936181]
[1646983672937,0.0040847,2615.9,2615.8,0.08936181]
[1646983673137,0.0040847,2615.9,2615.8,1.60366798]
[1646983673542,0.0040847,2615.9,2615.8,13.74896798]
[1646983673737,0.0040847,2615.9,2615.8,3.02135969]
[1646983673936,6.2838,2617.4,2615.9,0.06985272]
[1646983673937,0.00096,2617.2,2615.9,0.06985272]
[1646983674137,0.50286132,2617.3,2616.2,0.0694373]
[1646983674339,0.05689271,2617.1,2616.4,0.07961864]
[1646983674739,0.50186968,2617.0,2616.1,3.8853]
[1646983675037,0.50186968,2617.0,2616.7,1.51430617]
[1646983675474,0.00556298,2617.1,2616.0,1.51430617]
[1646983675475,0.93130231,2616.8,2616.0,1.51430617]
[1646983675675,0.02642416,2617.1,2616.1,0.07100799]
[1646983675676,0.81771274,2616.4,2616.1,0.07100799]
[1646983675873,0.81771274,2616.4,2615.9,0.0744633]
[1646983676073,0.81771274,2616.4,2615.9,1.58876947]
[1646983676272,0.81771274,2616.4,2615.9,1.51430617]
[1646983676472,0.81771274,2616.4,2615.7,0.00233942]
[1646983676473,1.09800435,2616.3,2615.8,0.08127726]
[1646983676679,0.91769616,2615.9,2615.8,0.08127726]
[1646983676881,0.04371098,2616.2,2615.7,0.00233942]
[1646983677081,0.46583029,2616.3,2615.8,1.46430617]
[1646983677477,0.01531886,2616.7,2615.8,1.46430617]
[1646983677478,0.462,2616.7,2615.8,1.46430617]
[1646983677679,0.50125213,2616.6,2615.8,0.3853]
[1646983677879,1.01416388,2616.5,2616.0,0.07758018]
[1646983679022,0.9556,2616.7,2616.0,0.07758018]
[1646983679023,0.80793538,2616.1,2616.0,0.07758018]
[1646983679223,1.0,2616.3,2616.2,1.09521628]
[1646983680027,0.9556,2616.7,2616.2,1.09521628]
[1646983680225,0.00400909,2616.4,2616.2,1.09521628]
[1646983680830,0.85966909,2616.5,2616.2,1.09521628]
[1646983681433,1.53569383,2616.3,2614.6,1.0]
[1646983681632,0.2573,2614.9,2614.5,2.14124745]
[1646983681832,1.53569383,2615.7,2614.8,1.46430617]
[1646983681833,0.06094667,2615.7,2614.8,1.46430617]
[1646983682033,0.46296,2615.6,2614.8,1.46430617]
[1646983682236,0.05244883,2615.5,2614.8,1.46430617]
[1646983682431,0.05244883,2615.5,2615.0,1.46430617]
[1646983682686,0.00096,2615.5,2615.4,1.46430617]
[1646983682885,0.06118228,2615.8,2615.0,1.46430617]
[1646983683088,0.89170485,2615.5,2614.2,0.07214042]
[1646983683285,0.89170485,2615.5,2614.6,1.45768307]
[1646983683583,0.89170485,2615.5,2614.7,0.99622797]
[1646983683784,0.0572216,2615.7,2615.3,1.45768307]
[1646983683983,0.0572216,2615.7,2614.8,2.38296978]
[1646983683984,0.462,2615.7,2614.8,2.38296978]
[1646983684186,0.0024,2615.5,2614.8,0.92528671]
[1646983684487,0.0024,2615.5,2614.6,1.45768307]
[1646983684685,1.08169265,2615.0,2614.6,1.45768307]
[1646983684890,0.462,2614.9,2614.6,1.45768307]
[1646983685684,0.462,2614.9,2614.1,0.32707622]
[1646983685885,0.462,2614.9,2614.3,1.45768307]
[1646983685886,1.41822,2614.9,2614.3,1.45768307]
[1646983686086,1.41822,2614.9,2614.3,1.40768307]
[1646983686286,1.03805324,2614.6,2613.9,1.40768307]
[1646983686529,1.03805324,2614.6,2613.7,0.08008321]
[1646983686530,1.1358142,2614.2,2613.7,0.00413684]
[1646983686731,1.1358142,2614.2,2613.7,0.92951514]
[1646983686732,0.5192417,2614.1,2613.7,0.92951514]
[1646983686933,0.0473301,2614.0,2613.7,0.92951514]
[1646983687231,0.05482926,2614.3,2613.9,1.40768307]
[1646983687436,0.05482926,2614.3,2613.7,0.0041363]
[1646983687633,0.462,2614.2,2613.7,0.0041363]
[1646983687835,0.762,2614.2,2613.8,1.40768307]
[1646983688035,0.762,2614.2,2613.7,0.0041363]
[1646983688237,1.66660792,2614.2,2613.7,0.0041363]
[1646983688434,1.66660792,2614.2,2613.6,0.92581077]
[1646983688635,0.05243646,2614.1,2613.7,0.00413636]
[1646983688834,0.762,2614.2,2613.7,3.50413636]
[1646983688835,0.462,2614.0,2613.7,3.50413636]
[1646983689036,0.95721,2614.9,2613.7,3.50413636]
[1646983689037,0.00096,2614.6,2614.0,0.51214133]
[1646983689235,0.462,2614.6,2614.1,0.92581077]
[1646983689436,0.462,2614.6,2614.2,1.0]
[1646983689635,0.04778645,2614.5,2614.2,1.0]
[1646983689838,0.50978645,2614.5,2614.4,1.40768307]
[1646983690040,0.462,2614.5,2614.4,1.40768307]
[1646983690677,0.462,2614.5,2614.2,1.0]
[1646983691174,0.0541176,2614.2,2614.0,0.51214133]
[1646983691376,0.462,2614.1,2614.0,0.51214133]
[1646983691573,0.462,2614.1,2613.7,0.00410446]
[1646983691574,3.0,2614.0,2613.7,1.41178753]
[1646983691778,0.51982328,2613.9,2613.7,1.41178753]
[1646983691976,0.05275638,2613.8,2613.6,1.0]
[1646983692277,0.51475638,2613.8,2613.7,0.00410408]
[1646983692475,0.81475638,2613.8,2613.7,0.00410408]
[1646983692680,0.762,2613.8,2613.7,0.00410408]
[1646983693276,0.762,2613.8,2613.4,0.89511697]
[1646983693476,0.762,2613.8,2613.6,0.00410633]
[1646983694531,0.762,2613.8,2612.8,1.40768307]
[1646983694728,0.95659,2613.7,2613.6,0.00410638]
[1646983694930,1.41859,2613.7,2613.6,0.00410638]
[1646983695530,2.37527,2613.7,2612.9,1.0]
[1646983695730,2.37527,2613.7,2613.0,0.89492682]
[1646983695731,3.332,2613.7,2613.0,0.89492682]
[1646983695929,1.10753494,2613.6,2613.5,0.00410643]
[1646983696130,0.762,2613.6,2613.5,0.00410643]
[1646983696728,0.762,2613.6,2612.9,1.0]
[1646983696931,0.95675,2613.4,2613.0,0.89487272]
[1646983697131,0.462,2613.3,2613.0,2.31896717]
[1646983697332,0.462,2613.2,2613.0,1.42409445]
[1646983697531,0.462,2613.1,2613.0,0.01641138]
[1646983697784,0.762,2613.1,2613.0,0.91107611]
[1646983697987,0.762,2613.1,2613.0,0.89466473]
[1646983698785,0.762,2613.1,2613.0,2.3023478]
[1646983699085,0.762,2613.1,2613.0,2.6876478]
[1646983699086,0.462,2613.1,2613.0,2.6876478]
[1646983699286,6.3987,2614.3,2614.1,0.54285961]
[1646983699486,0.462,2614.2,2614.1,0.54285961]
[1646983700490,0.762,2614.2,2614.1,0.54285961]
[1646983702430,0.7553539,2614.2,2614.1,0.54285961]
[1646983704235,0.79953995,2614.2,2614.1,0.74796932]
[1646983704434,0.79953995,2614.2,2614.1,0.69676932]
[1646983704435,0.99347032,2614.2,2614.1,0.69676932]
[1646983705477,1.99347032,2614.2,2614.1,0.69676932]
[1646983705874,1.79953995,2614.2,2614.1,0.69676932]
[1646983706075,0.79953995,2614.2,2614.1,0.69676932]
[1646983707081,1.79953995,2614.2,2614.1,0.69676932]
[1646983708587,2.0835472,2614.0,2613.7,0.00410242]
[1646983708784,2.0835472,2614.0,2612.6,4.90768307]
[1646983708785,2.37571,2613.9,2612.6,4.90768307]
[1646983709030,1.91368,2613.6,2612.7,0.87879901]
[1646983709230,6.25544869,2614.0,2613.4,1.40768307]
[1646983709231,0.462,2613.5,2613.4,1.40768307]
[1646983709430,0.3,2614.0,2613.4,4.90768307]
[1646983709431,0.76296,2614.0,2613.4,4.90768307]
[1646983709629,0.462,2614.0,2613.4,0.06480386]
[1646983709829,0.462,2614.0,2613.9,1.40768307]
[1646983710030,0.462,2614.0,2613.2,3.5]
[1646983710229,1.44106913,2614.0,2613.1,1.40768307]
[1646983710428,1.44106913,2614.0,2613.6,0.00410237]
[1646983710630,2.39759913,2614.0,2613.6,0.00410237]
[1646983710836,2.39759913,2614.0,2613.2,0.01641194]
[1646983710837,0.89205224,2613.6,2613.2,0.01641194]
[1646983711039,0.462,2613.5,2613.2,0.01641194]
[1646983711234,0.762,2613.5,2613.1,1.40768307]
[1646983711534,1.7187,2613.5,2613.1,1.40768307]
[1646983712035,1.7187,2613.5,2613.1,1.48622006]
[1646983712036,2.67536,2613.5,2613.1,1.48622006]
[1646983712435,0.95663,2613.4,2613.1,1.48622006]
[1646983712675,1.41863,2613.4,2613.3,1.40768307]
[1646983712881,1.41863,2613.4,2612.6,10.83]
[1646983712882,0.462,2613.4,2613.0,1.40768307]
[1646983713081,0.762,2613.4,2612.7,0.07940906]
[1646983713281,0.762,2613.4,2613.2,1.40768307]
[1646983713685,0.95659,2613.3,2613.2,1.40768307]
[1646983713882,1.25659,2613.3,2613.2,1.40768307]
[1646983716291,1.25659,2613.3,2613.1,0.00442924]
[1646983716532,0.3,2613.2,2613.1,1.41211231]
[1646983717338,0.3,2613.2,2613.1,1.40768307]
[1646983720186,0.32919217,2613.3,2613.1,1.40768307]
[1646983720387,1.00555802,2613.3,2613.1,1.40768307]
[1646983720788,0.95659,2613.3,2613.1,1.40768307]
[1646983721189,0.95659,2613.3,2613.1,1.41197948]
[1646983722091,0.95659,2613.3,2613.1,1.40106587]
[1646983722292,0.95659,2613.3,2613.1,1.40536228]
[1646983722492,0.95659,2613.3,2613.2,0.84491853]
[1646983724136,0.95659,2613.3,2613.2,4.34491853]
[1646983724436,0.95659,2613.3,2613.2,1.23021853]
[1646983724835,1.91325,2613.5,2613.3,0.05108949]
[1646983725037,1.91325,2613.5,2613.4,0.84491853]
[1646983725236,1.91325,2613.5,2613.4,2.2459844]
[1646983732130,1.91325,2613.5,2613.4,6.80822568]
[1646983732330,1.91325,2613.5,2613.4,3.30822568]
[1646983732530,1.91325,2613.5,2613.4,2.6312844]
[1646983732733,1.91325,2613.5,2613.4,2.2459844]
[1646983732933,1.91325,2613.5,2613.4,2.92292568]
[1646983733134,1.91325,2613.5,2613.4,2.2459844]
[1646983733634,1.91325,2613.5,2613.4,2.92292568]
[1646983733833,0.95642,2613.6,2613.4,6.42292568]
[1646983734035,2.87108,2614.1,2613.5,1.23021853]
[1646983734036,0.95623,2613.8,2613.5,1.23021853]
[1646983734338,0.95623,2613.8,2613.7,1.40106587]
[1646983734536,0.95623,2613.8,2613.7,2.2459844]
[1646983739244,0.95623,2613.8,2613.7,2.30810827]
[1646983739245,1.00044652,2613.8,2613.7,2.30810827]
[1646983739846,3.82653,2614.1,2613.7,2.30810827]
[1646983740045,3.82653,2614.1,2613.8,0.84491853]
[1646983740246,3.82653,2614.1,2613.9,0.84491853]
[1646983740446,3.82653,2614.1,2614.0,0.84491853]
[1646983740646,4.58202459,2614.1,2614.0,0.84491853]
[1646983742152,4.58202459,2614.1,2614.0,5.7459844]
[1646983742153,2.8634761,2614.1,2614.0,5.7459844]
[1646983742347,0.95641,2614.2,2614.0,2.2459844]
[1646983742546,0.95641,2614.2,2614.1,0.84491853]
[1646983742788,1.91242,2614.4,2614.1,0.84491853]
[1646983742789,0.95619,2614.4,2614.1,0.84491853]
[1646983742986,0.95619,2614.4,2614.2,0.84491853]
[1646983743285,0.95619,2614.4,2614.3,0.84491853]
[1646983743487,7.83302544,2614.5,2614.3,0.84491853]
[1646983743889,7.83302544,2614.5,2614.4,0.84491853]
[1646983744088,8.5889403,2614.5,2614.4,0.84491853]
[1646983744288,8.5889403,2614.5,2613.8,1.40106587]
[1646983744490,0.75591486,2614.4,2613.9,0.7969255]
[1646983745692,2.66873486,2614.4,2613.9,0.7969255]
[1646983746091,1.91282,2614.4,2613.9,0.7969255]
[1646983746532,1.91282,2614.4,2614.0,2.19799137]
[1646983746732,1.91282,2614.4,2614.1,0.7969255]
[1646983746935,1.91282,2614.4,2614.2,0.7969255]
[1646983747132,1.91282,2614.4,2614.3,0.7969255]
[1646983747337,2.6684746,2614.4,2614.3,0.7969255]
[1646983747535,2.6684746,2614.4,2613.9,0.7969255]
[1646983747735,2.82316122,2614.4,2614.0,0.7969255]
[1646983747935,2.82316122,2614.4,2613.9,0.7969255]
[1646983749537,0.03323706,2614.1,2614.0,0.17800879]
[1646983749739,0.03323706,2614.1,2614.0,0.97493429]
[1646983751187,0.03323706,2614.1,2614.0,0.96153589]
[1646983754342,0.03323706,2614.1,2614.0,0.88240538]
[1646983756548,1.11321807,2614.1,2614.0,0.88240538]
[1646983756948,1.11321807,2614.1,2614.0,0.83240538]
[1646983756949,1.16170917,2614.1,2614.0,0.83240538]
[1646983758290,0.08172816,2614.1,2614.0,0.83240538]
[1646983759090,0.08172816,2614.1,2614.0,0.8744185]
[1646983759892,2.29114313,2614.3,2614.0,0.8744185]
[1646983759893,1.69460087,2614.3,2614.0,0.8744185]
[1646983760091,1.69460087,2614.3,2614.1,0.7969255]
[1646983760291,1.69460087,2614.3,2614.2,0.7969255]
[1646983760497,1.64695753,2614.3,2614.2,0.7969255]
[1646983761945,3.9,2614.5,2614.2,2.19799137]
[1646983762140,3.9,2614.5,2614.3,4.2969255]
[1646983762339,3.9,2614.5,2614.4,2.19799137]
[1646983763741,3.9,2614.5,2614.4,0.7969255]
[1646983764344,4.84233263,2614.5,2614.4,0.7969255]
[1646983765790,5.30433263,2614.5,2614.4,0.7969255]
[1646983766786,6.09160449,2614.5,2614.4,0.7969255]
[1646983769944,6.09160449,2614.5,2614.4,0.97179726]
[1646983773890,6.09160449,2614.5,2614.4,0.17487176]
[1646983776293,5.14927186,2614.5,2614.4,0.93007678]
[1646983776543,5.14927186,2614.5,2614.4,2.33114265]
[1646983776743,5.14927186,2614.5,2614.4,0.93007678]
[1646983777342,5.98241511,2614.5,2614.4,0.93007678]
[1646983777946,5.98241511,2614.5,2614.4,0.88007678]
[1646983779446,9.48241511,2614.5,2614.4,0.88007678]
[1646983779649,9.48241511,2614.5,2614.4,0.12487176]
[1646983779852,0.00216673,2614.3,2613.9,1.0]
[1646983780050,1.80087008,2614.1,2614.0,0.75793583]
[1646983780295,3.05014194,2614.1,2614.0,0.75793583]
[1646983780900,3.05014194,2614.1,2613.9,0.75793583]
[1646983781199,2.26287008,2614.1,2613.9,0.75793583]
[1646983782298,9.85161265,2614.0,2613.4,0.69124891]
[1646983782498,9.85161265,2614.0,2613.5,0.02053106]
[1646983782499,1.46803724,2613.9,2613.5,0.02053106]
[1646983782700,0.8917208,2613.8,2613.5,0.02053106]
[1646983782896,0.50352549,2613.7,2613.5,0.02053106]
[1646983783397,0.50352549,2613.7,2613.0,0.69124891]
[1646983783596,0.50352549,2613.7,2613.5,0.00410597]
[1646983783800,0.92537494,2613.6,2613.5,0.00410597]
[1646983784081,2.34417494,2613.6,2613.5,0.00410597]
[1646983784677,2.34417494,2613.6,2613.0,0.69124891]
[1646983784878,3.30093494,2613.6,2613.4,0.00410601]
[1646983785077,0.95679,2613.5,2613.4,0.00410601]
[1646983785278,1.41879,2613.5,2613.4,0.00410601]
[1646983785881,1.41879,2613.5,2612.9,0.69124891]
[1646983786081,3.5,2613.4,2613.3,0.05519528]
[1646983786283,4.00542298,2613.4,2613.3,0.05519528]
[1646983786483,0.50542298,2613.4,2613.3,0.05519528]
[1646983786886,0.50542298,2613.4,2613.3,0.05108949]
[1646983788001,0.462,2613.4,2613.3,0.05108949]
[1646983791105,0.762,2613.4,2613.3,0.05108949]
[1646983791303,4.262,2613.4,2613.3,0.05108949]
[1646983792557,0.762,2613.4,2613.3,0.05108949]
[1646983793655,1.33058055,2613.4,2613.3,0.05108949]
[1646983794455,1.52451092,2613.4,2613.3,0.05108949]
[1646983795054,1.70654395,2613.4,2613.3,0.08152005]
[1646983795295,0.9846934,2613.4,2613.3,0.08152005]
[1646983795902,0.79076303,2613.4,2613.3,0.08152005]
[1646983797304,0.79076303,2613.4,2613.3,0.07516818]
[1646983798505,0.9846934,2613.4,2613.3,0.07516818]
[1646983799943,0.09085613,2613.4,2613.3,0.07516818]
[1646983800144,0.65593037,2613.4,2613.3,0.07516818]
[1646983802245,0.95593037,2613.4,2613.3,0.07516818]
[1646983802892,0.65593037,2613.4,2613.3,0.07516818]
[1646983804194,0.95593037,2613.4,2613.3,0.07516818]
[1646983804992,0.65593037,2613.4,2613.3,0.07516818]
[1646983805193,0.462,2613.4,2613.3,1.47623405]
[1646983805492,0.462,2613.4,2613.3,1.54834273]
[1646983805696,0.462,2613.4,2613.3,1.47623405]
[1646983806298,0.762,2613.4,2613.3,1.47623405]
[1646983806550,0.762,2613.4,2613.3,0.07516818]
[1646983807652,0.762,2613.4,2613.3,1.47623405]
[1646983807858,0.762,2613.4,2613.3,0.07516818]
[1646983808859,0.762,2613.4,2613.3,1.47623405]
[1646983809058,0.762,2613.4,2613.3,2.15450971]
[1646983809259,0.762,2613.4,2613.3,3.56327569]
[1646983810696,0.915236,2613.4,2613.3,1.48393416]
[1646983810894,0.762,2613.4,2613.3,1.48393416]
[1646983811096,0.78716765,2613.4,2613.3,1.48393416]
[1646983813200,0.78716765,2613.4,2613.3,1.43393416]
[1646983813399,1.66515287,2613.4,2613.3,1.43393416]
[1646983814448,1.81841887,2613.4,2613.3,1.43393416]
[1646983814649,1.66515287,2613.4,2613.3,1.43393416]
[1646983816553,1.64548874,2613.4,2613.3,1.43393416]
[1646983822554,1.64548874,2613.4,2612.2,2.09231478]
[1646983822555,7.18303294,2613.1,2612.2,2.09231478]
[1646983822850,5.83249911,2612.9,2612.2,0.69124891]
[1646983823049,5.83249911,2612.9,2612.3,0.659308]
[1646983823050,0.05431665,2612.7,2612.3,0.659308]
[1646983823254,10.62098522,2612.8,2611.7,0.108]
[1646983823255,0.04711659,2612.5,2611.7,0.108]
[1646983823451,0.05413271,2612.3,2611.8,0.63010323]
[1646983823650,1.00393442,2612.1,2611.8,0.63010323]
[1646983823849,2.29748522,2612.0,2611.8,0.63010323]
[1646983824149,0.9259139,2611.9,2611.8,0.63010323]
[1646983824448,0.9259139,2611.9,2611.8,0.63253377]
[1646983824449,1.63842887,2611.9,2611.8,0.63253377]
[1646983824848,0.712,2611.9,2611.8,0.00243054]
[1646983825207,1.63717068,2611.9,2611.8,0.00243054]
[1646983825495,1.00374067,2611.8,2611.7,0.108]
[1646983825799,1.00374067,2611.8,2610.8,0.29035389]
[1646983825800,1.01152927,2611.6,2611.3,0.01648955]
[1646983825998,0.04751422,2611.4,2611.3,0.01648955]
[1646983826198,1.53140363,2611.4,2611.3,0.01648955]
[1646983826397,1.53140363,2611.4,2611.3,0.64357385]
[1646983826599,1.53140363,2611.4,2611.3,0.6270843]
[1646983826900,1.53140363,2611.4,2611.2,0.63120653]
[1646983826901,0.04683009,2611.3,2611.2,0.63120653]
[1646983827198,0.04683009,2611.3,2610.8,0.01649141]
[1646983827199,1.00404306,2611.1,2610.8,0.01649141]
[1646983827400,0.462,2611.0,2610.8,0.01649141]
[1646983827596,0.462,2611.0,2610.9,0.62690338]
[1646983828200,0.6269,2610.9,2610.3,0.69124891]
[1646983828402,0.6269,2610.9,2610.2,0.0193374]
[1646983828403,3.962,2610.8,2610.2,0.0193374]
[1646983828601,6.17784,2610.8,2610.2,0.0193374]
[1646983828799,0.04423274,2610.5,2610.2,0.0193374]
[1646983829047,0.462,2610.4,2610.2,0.0193374]
[1646983829249,0.462,2610.3,2610.2,0.0193374]
[1646983832713,0.50844894,2610.3,2610.2,0.0193374]
[1646983833903,0.50844894,2610.3,2610.2,3.74e-05]
[1646983833904,0.50985963,2610.3,2610.2,3.74e-05]
[1646983834302,0.95817,2610.0,2609.7,0.01777822]
[1646983834503,0.05361444,2609.8,2609.7,0.01777822]
[1646983834701,0.51561444,2609.8,2609.7,0.01777822]
[1646983835103,0.762,2609.8,2608.4,1.0]
[1646983835303,4.31489272,2609.8,2608.4,1.0]
[1646983835508,4.31489272,2609.8,2608.2,0.8698284]
[1646983835509,2.87506,2609.5,2608.2,0.8698284]
[1646983835708,2.87506,2609.5,2607.9,0.00938144]
[1646983835709,1.0,2609.2,2607.9,0.00938144]
[1646983836006,0.92131617,2608.9,2607.9,0.00938144]
[1646983836203,0.462,2608.8,2607.9,0.00938144]
[1646983836444,0.462,2608.7,2607.9,0.00938144]
[1646983836645,0.462,2608.7,2608.4,0.0026123]
[1646983836846,0.762,2608.7,2608.4,0.0026123]
[1646983837045,1.72056,2608.7,2608.4,0.0026123]
[1646983837246,0.95858,2608.6,2608.4,0.0026123]
[1646983837447,0.95858,2608.6,2607.9,0.00938144]
[1646983837448,0.462,2608.5,2607.9,0.00938144]
[1646983837648,0.762,2608.5,2607.9,0.00938144]
[1646983838256,0.462,2608.5,2607.9,0.00938144]
[1646983838453,0.462,2608.5,2608.0,0.3853]
[1646983838657,0.95832,2609.1,2608.2,0.3853]
[1646983838856,0.462,2609.0,2608.2,0.3853]
[1646983839255,0.762,2609.0,2608.2,0.3853]
[1646983839455,0.762,2609.0,2608.0,1.0]
[1646983839456,0.9584,2608.9,2608.0,1.0]
[1646983839656,0.462,2608.8,2608.0,1.0]
[1646983839857,0.762,2608.8,2608.0,1.0]
[1646983840056,0.762,2608.8,2608.3,0.00444148]
[1646983841094,1.7205,2608.8,2607.9,0.00938144]
[1646983841395,1.7205,2608.8,2608.4,0.00444137]
[1646983841396,0.9585,2608.6,2608.4,0.00444137]
[1646983841596,0.462,2608.5,2608.4,0.00444137]
[1646983842198,0.462,2608.5,2607.9,0.00938144]
[1646983842400,0.48697977,2608.5,2607.9,0.00938144]
[1646983842599,2.87563,2608.7,2608.3,0.00444148]
[1646983842600,1.97744291,2608.7,2608.3,0.00444148]